Cogmind - Beta 16.1 *** ADVENTURER MODE // 2026.03.10 @ 04:20:34 Player: Ms. V3-11A Result: Destroyed by G-50 Soldier with Heavy Laser Performance ------------- Evolutions (5) 2500 Regions Visited (11) 2200 Robots Destroyed (176) 880 Value Destroyed (7062) 7062 Prototype IDs (34) 680 Alien Tech Used (0) 0 Bonus (3322) 3322 TOTAL SCORE: 16644 Bonus ------- High Alert Combat Kills 211 Follower Combat Kills 2445 Network Hubs Disabled 200 Built Enhanced Grunts 300 Met R17 at Cetus 500 Friendly Fire -334 Cogmind --------- Core Integrity 0/1000 Matter 78/300 Energy 100/100 System Corruption 14% Temperature Cool (9) Movement Core (800) Ox15 Location -5/Factory Parts ------- > --- POWER (2) -------- (None) > --- PROPULSION (4) --- (None) > --- UTILITY (7) ------ Scrap Engine High-capacity Storage Unit Improved Target Analyzer Centrium Medium Armor Plating Improved Hacking Suite Improved System Shield > --- WEAPON (4) ------- (None) > --- INVENTORY (20) --- Energy Well (350) Energy Well (328) Advanced Sensor Array Centrium Medium Armor Plating Graphene Brace Improved Hacking Suite Improved Hacking Suite Improved Hacking Suite Improved System Shield 1B-0RG's Assimilator Peak State ------------ > --- POWER ------------ Momentum-Nuclear Engine > --- PROPULSION ------- Wheeled Compact Exoskeleton > --- UTILITY ---------- Armored Scrap Engine Advanced Heat Sink Improved Cooling System High-capacity Storage Unit Centrium Medium Armor Plating Powered Armor > --- WEAPON ----------- Rapid EM Shock Construct/G Hpw. Charged Tesla Construct/G > --- INVENTORY -------- Quantum Reactor Energy Well Advanced Sensor Array Improved Signal Interpreter Improved Particle Charger Hardened Medium Armor Plating Improved Light Armor Plating Improved Light Armor Plating Centrium Medium Armor Plating Centrium Medium Armor Plating Recalibrator Plasma Rifle Advanced Variable Charge Gun Proton Cannon Missile Launcher 1B-0RG's Assimilator [Rating: 111] Favorites ----------- Power Constructs Engine Constructs Power Core Nuclear Core Propulsion Light Treads Treads Light Treads Leg Aluminum Leg Wheel Constructs Hover Unit Antigrav System Utility High-capacity Storage Unit Device Armored Scrap Engine Storage High-capacity Storage Unit Processor Machine Analyzer Hackware Improved Hacking Suite Protection Propulsion Shielding Weapon Constructs Energy Gun Constructs Energy Cannon Proton Cannon Ballistic Gun Barrage Gun Ballistic Cannon Battle Cannon Launcher Missile Launcher Impact Weapon Heavy Flail Build | -11 -10 -10 -8 -8 -8 -6 -6 -6 -6 -6 -5 ------- Run | Yrd Mat Sub Mat Sto Rec Fac Ext Cet Arc Hub Fac Slots Evolved 10 | . . . 4 . . 4 . . . . 2 Power 1 | . . . . . . 1 . . . . . Propulsion 2 | . . . 1 . . 1 . . . . . Utility 5 | . . . 3 . . 2 . . . . . Weapon 2 | . . . . . . . . . . . 2 Parts Attached 99 | 2 6 17 14 11 7 10 8 3 . 5 16 Power 10 | . . 2 1 3 2 . . . . 1 1 Engine 5 | . . 2 . 1 1 . . . . 1 . Core 5 | . . . 1 2 1 . . . . . 1 Reactor . | . . . . . . . . . . . . Propulsion 17 | 2 . 4 5 2 1 . . . . . 3 Treads 10 | 2 . 2 3 2 1 . . . . . . Leg 4 | . . 2 2 . . . . . . . . Wheel . | . . . . . . . . . . . . Hover 3 | . . . . . . . . . . . 3 Flight . | . . . . . . . . . . . . Utility 44 | . 4 3 4 3 3 10 5 2 . 2 8 Device 18 | . . . 2 1 1 8 2 1 . 1 2 Storage 2 | . 2 . . . . . . . . . . Processor 5 | . 1 . 1 . 1 1 . . . . 1 Hackware 2 | . . . . . . . . . . . 2 Protection 17 | . 1 3 1 2 1 1 3 1 . 1 3 Artifact . | . . . . . . . . . . . . Weapon 28 | . 2 8 4 3 1 . 3 1 . 2 4 Energy Gun 10 | . . . 3 2 . . 3 . . . 2 Energy Cannon 2 | . . . . . . . . 1 . 1 . Ballistic Gun 8 | . 2 6 . . . . . . . . . Ballistic Cannon 3 | . . 1 . . . . . . . . 2 Launcher 2 | . . . . . 1 . . . . 1 . Special Weapon . | . . . . . . . . . . . . Impact Weapon 3 | . . 1 1 1 . . . . . . . Slashing Weapon . | . . . . . . . . . . . . Piercing Weapon . | . . . . . . . . . . . . Special Melee Weapon . | . . . . . . . . . . . . Unidentified Prototypes 4 | . . . 1 . 1 . . 1 . 1 . Corrupted Parts 3 | . . . . . . . . . . 3 . System Corruption 13 | . . . . . . . . . . 13 . Parts Lost 56 | . 1 6 5 6 3 2 3 1 . 9 20 Power 11 | . . 1 1 1 1 . . . . 3 4 Propulsion 9 | . . 2 1 1 . . . . . 1 4 Utility 20 | . . 3 . 3 2 1 2 1 . 4 4 Weapon 16 | . 1 . 3 1 . 1 1 . . 1 8 Highest Loss Streak 9 | . 1 2 2 5 3 1 1 1 . 3 9 To Critical Strikes 1 | . 1 . . . . . . . . . . Average Backups 10 | 6 6 14 1 1 5 10 13 14 15 15 12 Power . | 1 1 1 . . . . . . . . . Propulsion . | 4 . 1 . . . . . . . . . Utility 5 | . 2 5 . . 2 7 8 9 11 12 11 Weapon 2 | 1 1 5 . . 1 2 3 3 3 1 . Tool/Special . | . . . . . . . . . . . . Unused Backups 60 | . 4 13 . . 6 4 17 2 3 2 9 Power 5 | . 1 . . . 1 . 2 . 1 . . Propulsion 11 | . . . . . 3 . 8 . . . . Utility 27 | . 3 8 . . 1 2 1 2 1 2 7 Weapon 16 | . . 5 . . 1 2 6 . 1 . 1 Tool/Special 1 | . . . . . . . . . . . 1 Average Slot Usage (%) 81 | . 99 99 83 92 82 63 64 65 66 62 52 Engine 6 | . 14 13 . . 3 5 2 3 . 1 . Core 1 | . . . 2 8 5 . 2 . . . 4 Treads 15 | . 28 27 13 26 20 . . . 6 6 1 Leg 1 | . . . 11 . . 1 5 5 . . 1 Device 8 | . . . 14 9 6 17 19 20 20 18 9 Storage 9 | . 14 14 9 9 9 6 6 6 6 6 4 Processor 3 | . . . 6 9 9 6 5 . . . 1 Protection 10 | . 13 13 9 13 12 6 7 13 13 11 2 Energy Gun 5 | . 7 . 4 16 8 3 8 2 13 10 5 Energy Cannon 1 | . . . . . 4 5 . 4 . 1 . Ballistic Gun 10 | . 20 24 8 . 4 2 1 1 . . . Ballistic Cannon 1 | . . 3 . . . . . 3 . . 3 Peak Build Rating 111 | 6 8 35 52 52 52 75 94 111 111 111 92 Average Rating 48 | 5 7 18 44 44 45 65 86 94 110 104 78 On Entrance 55 | 6 6 8 35 52 46 49 75 88 111 111 76 Avg Prop Armor Cover (%) 12 | . . . 12 . . . . . . . 11 Naked Turns . | . . . . . . . . . . . . Heaviest Build 110 | 13 51 53 56 59 62 70 85 110 110 110 99 Greatest Support 179 | 40 40 40 62 62 64 63 122 179 99 99 105 Greatest Overweight (x) 5 | . 1 2 4 1 1 1 1 1 1 1 5 Average Overweight (x) . | . . 1 1 . . . . . 1 . 1 Largest Inventory Capacity 20 | 8 20 20 20 20 20 20 20 20 20 20 20 Average Capacity 19 | 8 12 20 20 20 20 20 20 20 20 20 19 Most Carried 20 | 6 10 20 20 20 20 18 20 20 20 20 20 Average Carried 16 | 4 6 18 20 20 13 14 17 18 19 19 16 Final Capacity 20 | 8 20 20 20 20 20 20 20 20 20 20 20 Final Carried 20 | 2 10 20 20 20 11 17 18 20 20 19 14 Scrap Engine Consumption 215 | . . . . . 24 34 89 17 3 21 27 Constructs Created 13 | . . . . . 4 1 . 1 . 1 6 Constructs Modified 71 | . . . . . 2 19 28 13 . . 9 Class Distribution -------------------- 42% | Mutant 21% | Commander-Construct 16% | Construct 8% | Commander-Mutant 6% | Scavenger-Mutant Dominant Class ---------------- Mutant | -10/Materials Mutant | -10/Subcaves Mutant | -8/Materials Scavenger-Mutant | -8/Storage Commander-Mutant | -8/Recycling Construct | -6/Factory Commander-Construct | -6/Extension Commander-Construct | -6/Cetus Commander-Construct | -6/Archives Commander-Construct | -6/Hub_04(d) Construct | -5/Factory Resources | -11 -10 -10 -8 -8 -8 -6 -6 -6 -6 -6 -5 ----------- Run | Yrd Mat Sub Mat Sto Rec Fac Ext Cet Arc Hub Fac Matter Collected 3574 | 200 469 1008 313 140 302 225 186 49 45 197 440 Remotely . | . . . . . . . . . . . . Salvage Created 9149 | . 703 828 593 816 596 1341 1652 157 356 1011 1096 Parts 437 | . 47 41 24 36 21 57 76 5 26 35 69 Haulers Intercepted 2 | . 1 . . . . . . . . 1 . Recyclers Shooed 18 | . . . 5 3 2 . 3 . . . 5 Parts Field Recycled . | . . . . . . . . . . . . Retrieved Matter . | . . . . . . . . . . . . Parts Self-Destructed 18 | . . 18 . . . . . . . . . Prevented . | . . . . . . . . . . . . Parts Restored . | . . . . . . . . . . . . Kills | -11 -10 -10 -8 -8 -8 -6 -6 -6 -6 -6 -5 ------- Run | Yrd Mat Sub Mat Sto Rec Fac Ext Cet Arc Hub Fac Combat Hostiles Destroyed 138 | . 20 14 9 16 3 19 20 2 1 12 22 Guns 98 | . 19 13 6 15 3 4 20 1 1 3 13 Cannons 18 | . . 1 . . . 14 . . . 1 2 AOE 19 | . 1 . 3 . . . . . . 8 7 Classes Destroyed 18 | . 5 2 1 . . 3 2 . 1 4 . Worker 4 | . . . . . . . . . . 2 2 Builder 2 | . . . . . . 1 . . . . 1 Hauler 3 | . 1 . . . . 1 . . . 1 . Recycler 12 | . . . 2 2 1 2 3 . . . 2 Mechanic 1 | . . . . . . 1 . . . . . Operator 6 | . . . . . . . . . 6 . . Watcher 3 | . 1 . . . . . 1 1 . . . Swarmer 27 | . 9 . . 4 . 6 3 . . . 5 Grunt 48 | . 10 . 8 6 1 9 4 1 . 4 5 Duelist 1 | . . . . . . . 1 . . . . Protector 1 | . . . . . . . . . . 1 . Sentry 25 | . . 1 1 6 1 2 10 . 1 3 . Hunter 2 | . . . . . . . . . . . 2 Programmer 11 | . . . . . . 2 . . . . 9 Behemoth 3 | . . . . . . . 2 . . . 1 Cetus Guard 1 | . . . . . . . . 1 . . . Enhanced Grunt 2 | . . . . . . . . . . 2 . Lightning 4 | . . . . . . . . . . 4 . Cobbler 2 | . . 2 . . . . . . . . . Subdweller 16 | . 1 13 . . 2 . . . . . . Thug 1 | . . . . . . . . . 1 . . Savage 1 | . . . . . . . . . . 1 . Butcher 1 | . . . . . . . . . . 1 . Guerrilla 1 | . . . . . . . . . . 1 . Best Kill Streak 10 | . 5 2 3 6 2 3 5 1 3 10 7 Combat Bots Only 7 | . 5 2 3 6 2 3 3 1 1 7 6 Max Kills in Single Turn 4 | . 2 1 2 1 1 2 1 1 2 4 2 Gunslinging 1 | . 1 . . . . . . . . . . Exploded 4 | . 1 . 2 . . . . . . 4 2 Melee . | . . . . . . . . . . . . Uniques/NPCs Destroyed . | . . . . . . . . . . . . Combat | -11 -10 -10 -8 -8 -8 -6 -6 -6 -6 -6 -5 -------- Run | Yrd Mat Sub Mat Sto Rec Fac Ext Cet Arc Hub Fac Hostile Shots Fired 1616 | . 67 76 74 178 19 201 290 32 5 304 370 Missed 529 | . 20 17 24 51 6 73 107 9 1 119 102 Hits 1087 | . 47 59 50 127 13 128 183 23 4 185 268 Melee 4 | . . . . . . . 3 . . . 1 Projectile 1083 | . 47 59 50 127 13 128 180 23 4 185 267 AOE 3 | . . . . . . . . . . . 3 Critical Strikes 42 | . 1 2 3 4 . 4 1 4 . 6 17 Actively Blocked 3 | . . 1 . . . . . . . . 2 Damage Taken 13966 | . 391 1063 748 1285 330 1395 1364 410 111 2218 4651 Core 1938 | . 49 157 102 199 14 161 88 . . 159 1009 Absorbed by Shields 594 | . . . . . 31 100 357 106 . . . Redirected to Shielding 115 | . . 105 9 . 1 . . . . . . Ignored by Resistances 4050 | . 124 282 207 374 55 425 528 142 29 642 1242 Regen/Repaired (Parts) 2383 | . 37 . . 347 19 436 750 263 26 97 408 Core Remaining (%) 52 | 100 . 17 . . 42 . . . . 52 . Volleys Fired 641 | . 44 109 46 68 40 58 98 17 17 45 99 Largest 4 | . 2 2 2 2 2 2 2 2 2 2 4 Hottest 191 | . 60 61 128 128 100 146 172 127 127 155 191 Shots Fired 1075 | . 87 222 73 109 49 113 162 34 33 69 124 Gun 898 | . 87 216 73 109 25 53 161 16 33 44 81 Cannon 156 | . . 6 . . 23 60 1 18 . 16 32 Launcher 21 | . . . . . 1 . . . . 9 11 Special . | . . . . . . . . . . . . Kinetic 428 | . 57 222 57 . . 19 11 4 17 9 32 Thermal 462 | . . . 4 104 17 50 151 17 16 51 52 Explosive 21 | . . . . . 1 . . . . 9 11 Electromagnetic 164 | . 30 . 12 5 31 44 . 13 . . 29 Robot Hit Streak 43 | . 29 23 13 26 24 43 28 26 11 16 25 Robot Miss Streak 5 | . 1 2 3 2 2 3 3 2 2 3 5 Penetration Max 1 | . . . . . . . . . 1 1 . Secondary Targets 9 | . 6 1 1 . . . 1 . . . . Max Gunslinging Chain 1 | . 1 1 1 . . . 1 . . . . Shots Hit Robots 790 | . 75 128 53 86 38 85 129 31 27 44 94 Core Hits 414 | . 36 39 23 39 15 38 51 22 17 62 72 Critical Kills 2 | . . 1 . . . 1 . . . . . Critical Parts Destroyed 5 | . 1 1 2 . . . . . . . 1 Critical Strikes 23 | . 2 3 2 8 1 1 2 . . . 4 Burn 11 | . . . . 8 . . 2 . . . 1 Destroy 8 | . 1 3 2 . . 1 . . . . 1 Corrupt 4 | . 1 . . . 1 . . . . . 2 Melee Attacks 2 | . . 1 1 . . . . . . . . Impact 2 | . . 1 1 . . . . . . . . Slashing . | . . . . . . . . . . . . Piercing . | . . . . . . . . . . . . Sneak Attacks . | . . . . . . . . . . . . Combat Hostiles . | . . . . . . . . . . . . Follow-up Attacks . | . . . . . . . . . . . . Damage Inflicted 21440 | . 967 2215 1182 1293 970 2336 3435 1026 873 3349 3794 Guns 13732 | . 894 2128 892 1293 215 891 3331 405 873 762 2048 Cannons 3514 | . . 87 . . 530 1282 37 456 . 519 603 Explosions 4174 | . 70 . 287 . 224 163 54 165 . 2068 1143 Melee . | . . . . . . . . . . . . Ramming 20 | . 3 . 3 . 1 . 13 . . . . Kinetic 5266 | . 515 2215 650 . . 326 225 109 460 163 603 Thermal 9750 | . 70 . 110 1264 271 1034 3197 605 413 1118 1668 Explosive 2628 | . . . 212 . 91 . . . . 1217 1108 Electromagnetic 3776 | . 379 . 207 29 607 976 . 312 . 851 415 Impact . | . . . . . . . . . . . . Slashing . | . . . . . . . . . . . . Piercing . | . . . . . . . . . . . . Highest Corruption 28 | . 1 1 . . 10 . 1 1 1 28 14 Average Corruption 3 | . 1 1 . . 8 . 1 1 1 7 4 Corruption Purged . | . . . . . . . . . . . . Corruption Blocked . | . . . . . . . . . . . . Effects 210 | . 7 40 . . 96 . 12 10 3 15 27 Message Errors 51 | . 1 8 . . 30 . . 4 1 2 5 Matter Fused 51 | . 2 6 . . 25 . 6 1 1 2 8 Heat Flow Errors 24 | . 1 4 . . 12 . 1 2 . 3 1 Energy Discharges 18 | . 1 . . . 9 . 1 . . 1 6 Parts Rejected 1 | . . 1 . . . . . . . . . Parts Fused 3 | . . 1 . . 1 . . . . . 1 Data Loss (minor) 32 | . 2 10 . . 10 . 2 3 . 2 3 Data Loss (major) 13 | . . 4 . . 6 . 1 . . 2 . Misfires 9 | . . 5 . . 2 . . . . 2 . Alerts 4 | . . 1 . . 1 . . . . . 2 Weapon Failures 4 | . . . . . . . 1 . 1 1 1 Overload Shots . | . . . . . . . . . . . . Overflow Damage 155 | . . . 66 . 5 25 . 1 . 31 27 Projectiles 28 | . . . . . 2 25 . 1 . . . Explosions 127 | . . . 66 . 3 . . . . 31 27 Melee . | . . . . . . . . . . . . Knockbacks 20 | . . 2 . . . . . . . . 18 Impact . | . . . . . . . . . . . . Kinetic 20 | . . 2 . . . . . . . . 18 Secondary . | . . . . . . . . . . . . Self-Inflicted Damage 289 | . 8 . 90 . 25 67 . . . 80 19 Shots 7 | . 1 . 1 . 1 2 . . . 1 1 Rammed 4 | . 1 . 1 . 1 . . . . . 1 Targets Rammed 6 | . 1 . 1 . 1 . 2 . . . 1 Kicked 2 | . . . . . . . 2 . . . . Crushed . | . . . . . . . . . . . . Highest Temperature 618 | . 136 184 51 129 313 441 423 204 . 504 618 Average Temperature 119 | . 39 84 22 32 101 121 111 105 . 129 217 Received Heat Transfer 4371 | . 207 270 486 684 51 594 496 36 27 549 971 Effects 30 | . . . . . 1 2 3 . . . 24 Shutdowns 6 | . . . . . . . . . . . 6 Energy Bleed 2 | . . . . . . 1 . . . . 1 Interference 3 | . . . . . 1 . 2 . . . . Matter Decay 5 | . . . . . . . . . . . 5 Short Circuit 4 | . . . . . . . . . . . 4 Damage (minor) 2 | . . . . . . 1 1 . . . . Damage (major) 7 | . . . . . . . . . . . 7 Damage (core) 1 | . . . . . . . . . . . 1 Siege Activations . | . . . . . . . . . . . . Martial Activations . | . . . . . . . . . . . . Shielding Activations . | . . . . . . . . . . . . Robots Disrupted . | . . . . . . . . . . . . Combat Hostiles . | . . . . . . . . . . . . Robots Corrupted 7 | . . . . . 2 1 . 1 . 3 . Combat Hostiles 4 | . . . . . 2 1 . 1 . . . Parts Fried 11 | . 1 . . . . . 1 1 . 8 . Impact Corruptions . | . . . . . . . . . . . . Robots Melted 1 | . . . . 1 . . . . . . . Combat Hostiles 1 | . . . . 1 . . . . . . . Parts Melted 11 | . . . . 8 . . 3 . . . . Heat Transferred 9805 | . 100 . 124 3811 536 150 3715 875 . . 494 Parts Sabotaged 1 | . . . . . . . . . . . 1 Parts Stolen . | . . . . . . . . . . . . Parts Stripped . | . . . . . . . . . . . . Power Chain Reactions 9 | . 2 . 1 . 1 2 1 1 . . 1 Alert | -11 -10 -10 -8 -8 -8 -6 -6 -6 -6 -6 -5 ------- Run | Yrd Mat Sub Mat Sto Rec Fac Ext Cet Arc Hub Fac Maximum Alert Level 2 | . 1 . . 1 . 2 1 . . 2 1 Low Security (%) 82 | 100 98 . 100 88 100 67 63 100 100 20 66 Level 1 15 | . 1 . . 11 . 30 36 . . 47 33 Level 2 1 | . . . . . . 1 . . . 32 . Level 3 . | . . . . . . . . . . . . Level 4 . | . . . . . . . . . . . . Level 5 . | . . . . . . . . . . . . High Security . | . . . . . . . . . . . . Max Security . | . . . . . . . . . . . . Peak Influence 559 | . 211 . 113 217 50 400 328 174 87 559 288 Initial 400 | . . . . 7 15 400 27 70 1 . 219 Average 94 | . 45 . 17 129 3 198 134 52 21 319 176 Influence Increases 6355 | . 524 20 287 517 289 967 1438 414 191 1032 676 Destroy 0b10 Robot/C 3480 | . 380 20 180 320 60 380 920 240 80 460 440 Destroy 0b10 Robot/NC 225 | . 10 . 10 10 35 20 30 10 35 40 25 Destroy Leader 614 | . 74 . 40 90 . 100 94 10 . 116 90 Allied During Kill 608 | . . . . . 2 . 274 129 54 149 . Successful Hack 167 | . 38 . . 37 16 3 47 . . . 26 Select Force Hacks 150 | . . . . . 150 . . . . . . Disable Machine 162 | . 18 . 18 . . 18 9 . 9 81 9 Destroy Structure 339 | . 4 . 39 . 26 16 19 25 13 141 56 Advance Influence 400 | . . . . . . 400 . . . . . Partial Spotted 15 | . . . . . . 15 . . . . . Lose Combat Pursuer 195 | . . . . 60 . 15 45 . . 45 30 Influence Decreases 6350 | . 524 20 264 493 336 900 1360 553 197 512 1191 Entered New Map 469 | . . . . 16 32 . 40 75 5 . 301 Time Decay 4695 | . 416 20 229 430 297 760 1028 381 152 292 690 Search Patrol Dispatched 100 | . . . . . . 100 . . . . . Lost Part 420 | . . . 35 47 . 20 28 10 . 80 200 Lost Ally 534 | . . . . . 7 20 240 87 40 140 . Purge Threat 132 | . 108 . . . . . 24 . . . . Squads Dispatched 25 | . 2 . 2 1 . 7 3 . . 6 4 Investigation 8 | . 2 . . . . 2 2 . . 1 1 Extermination 5 | . . . . . . 2 . . . 1 2 Reinforcement 6 | . . . 2 1 . . 1 . . 1 1 Assault . | . . . . . . . . . . . . Garrison 6 | . . . . . . 3 . . . 3 . Intercept . | . . . . . . . . . . . . Searches Triggered 1 | . . . . . . 1 . . . . . Construction Impeded 3 | . . . 1 . . . 1 . . . 1 Haulers Reinforced . | . . . . . . . . . . . . Active Scanning Responses . | . . . . . . . . . . . . Cargo Convoy Interrupts 1 | . . . . . . . . . . . 1 Stealth | -11 -10 -10 -8 -8 -8 -6 -6 -6 -6 -6 -5 --------- Run | Yrd Mat Sub Mat Sto Rec Fac Ext Cet Arc Hub Fac Distress Signals 14 | . 3 . 2 2 2 1 2 2 . . . Communications Jammed . | . . . . . . . . . . . . Distress Signals . | . . . . . . . . . . . . Times Spotted 247 | . 29 15 16 28 6 23 48 15 11 21 35 Peak Tracking Total 9 | . 5 2 3 8 2 4 6 5 1 9 7 Tactical Retreats 8 | . . . . 2 . 1 2 . . 1 2 Traps | -11 -10 -10 -8 -8 -8 -6 -6 -6 -6 -6 -5 ------- Run | Yrd Mat Sub Mat Sto Rec Fac Ext Cet Arc Hub Fac Traps Triggered 5 | . 2 1 . . . 1 . . . 1 . Indirectly 1 | . . . . . . . . . . 1 . Trap Hack Attempts . | . . . . . . . . . . . . Triggered . | . . . . . . . . . . . . Disarmed . | . . . . . . . . . . . . Reprogrammed . | . . . . . . . . . . . . Reused . | . . . . . . . . . . . . Traps Extracted . | . . . . . . . . . . . . Installed 1 | . . 1 . . . . . . . . . Triggered . | . . . . . . . . . . . . Most Traps Carried 1 | . . 1 . . . . . . . . . Machines | -11 -10 -10 -8 -8 -8 -6 -6 -6 -6 -6 -5 ---------- Run | Yrd Mat Sub Mat Sto Rec Fac Ext Cet Arc Hub Fac Machines Disabled 18 | . 2 . 2 . . 2 1 . 1 9 1 Max in Single Turn 6 | . 1 . 1 . . 1 1 . . 6 1 Network Hub 1 | . . . . . . . . . . 1 . Machines Repaired . | . . . . . . . . . . . . Machines Dismantled . | . . . . . . . . . . . . Machines Sabotaged . | . . . . . . . . . . . . Overloaded Fab Kills . | . . . . . . . . . . . . Hacking | -11 -10 -10 -8 -8 -8 -6 -6 -6 -6 -6 -5 --------- Run | Yrd Mat Sub Mat Sto Rec Fac Ext Cet Arc Hub Fac Machines Accessed 57 | . 9 4 1 8 12 3 15 . . 3 2 Terminals 40 | . 8 . . 5 6 2 15 . . 3 1 Fabricators 1 | . . . . . . . . . . . 1 Repair Stations 3 | . 1 . . 2 . . . . . . . Recycling Units 7 | . . . 1 1 5 . . . . . . Scanalyzers . | . . . . . . . . . . . . Garrison Access 1 | . . . . . . 1 . . . . . Total Hacks 166 | . 33 9 2 25 36 5 39 . . 7 10 Successful 109 | . 24 9 . 18 22 1 26 . . 3 6 Failed 57 | . 9 . 2 7 14 4 13 . . 4 4 Catastrophic 2 | . . . . . . 1 . . . . 1 Database Lockouts . | . . . . . . . . . . . . Manual 82 | . 20 . . 8 25 4 13 1 . 7 4 Terminals 127 | . 30 . . 15 26 3 39 . . 7 7 Fabricators 3 | . . . . . . . . . . . 3 Repair Stations 10 | . 3 . . 7 . . . . . . . Recycling Units 13 | . . . 2 3 8 . . . . . . Scanalyzers . | . . . . . . . . . . . . Garrison Access 2 | . . . . . . 2 . . . . . Terminal Hacks 59 | . 11 9 . 8 9 1 18 . . 1 2 Record 7 | . . 6 . . . . 1 . . . . Part Schematic 9 | . . . . 3 4 . 1 . . . 1 Robot Schematic 2 | . . . . 1 1 . . . . . . Robot Analysis 3 | . 2 . . . . . 1 . . . . Prototype ID Bank 7 | . 3 . . 1 . . 3 . . . . Open Door 12 | . . 1 . 1 . 1 9 . . . . Level Access Points 1 | . . . . . . . 1 . . . . Branch Access Points 1 | . . . . . 1 . . . . . . Terminal Index 5 | . 1 . . 1 1 . . . . 1 1 Unreport Threat 3 | . 2 . . . . . 1 . . . . Locate Traps 1 | . . . . . . . 1 . . . . Registered Prototypes 1 | . 1 . . . . . . . . . . Zone Layout 3 | . 2 . . 1 . . . . . . . Proto ID Catalog 1 | . . 1 . . . . . . . . . Release Object 3 | . . 1 . . 2 . . . . . . Fabricator Hacks 3 | . . . . . . . . . . . 3 Network Status 1 | . . . . . . . . . . . 1 Load Schematic 1 | . . . . . . . . . . . 1 Build 1 | . . . . . . . . . . . 1 Repair Station Hacks 8 | . 2 . . 6 . . . . . . . Scan Component 4 | . 1 . . 3 . . . . . . . Repair 4 | . 1 . . 3 . . . . . . . Recycling Unit Hacks 1 | . . . . 1 . . . . . . . Retrieve Components 1 | . . . . 1 . . . . . . . Scanalyzer . | . . . . . . . . . . . . Garrison Access Hacks . | . . . . . . . . . . . . Unauthorized Hacks 38 | . 11 . . 3 13 . 8 . . 2 1 Terminals 32 | . 11 . . 3 7 . 8 . . 2 1 Botnet 18 | . 4 . . 3 3 . 5 . . 2 1 Skim 14 | . 7 . . . 4 . 3 . . . . Fabricators . | . . . . . . . . . . . . Repair Stations . | . . . . . . . . . . . . Recycling Units 6 | . . . . . 6 . . . . . . Mask 1 | . . . . . 1 . . . . . . Tunnel 5 | . . . . . 5 . . . . . . Scanalyzers . | . . . . . . . . . . . . Garrison Access . | . . . . . . . . . . . . Data Cores Recovered 2 | . . . . . . . 1 . . 1 . Used . | . . . . . . . . . . . . Hacking Detections 39 | . 9 . 1 6 7 2 9 . . 3 2 Full Trace Events 9 | . 1 . 1 . 3 2 1 . . . 1 Feedback Events 2 | . . . . . 2 . . . . . . Corruption 2 | . . . . . 2 . . . . . . Feedback Blocked . | . . . . . . . . . . . . Robot Schematics Acquired 2 | . . . . 1 1 . . . . . . Robots Built . | . . . . . . . . . . . . Authchips . | . . . . . . . . . . . . Time . | . . . . . . . . . . . . Total Robot Build Rating . | . . . . . . . . . . . . Part Schematics Acquired 9 | . . . . 3 4 . 1 . . . 1 Parts Built 2 | . . . . . . . . . . . 2 Authchips . | . . . . . . . . . . . . Time 73 | . . . . . . . . . . . 73 Total Part Build Rating 6 | . . . . . . . . . . . 6 Part Studies Acquired . | . . . . . . . . . . . . Parts Repaired 4 | . 1 . . 3 . . . . . . . Time 115 | . 38 . . 77 . . . . . . . Parts Recycled . | . . . . . . . . . . . . Recycled Matter . | . . . . . . . . . . . . Retrieved Matter . | . . . . . . . . . . . . Retrieved Components 4 | . . . . 4 . . . . . . . Parts Scanalyzed . | . . . . . . . . . . . . Part Schematics Acquired . | . . . . . . . . . . . . Parts Damaged . | . . . . . . . . . . . . Bothacking | -11 -10 -10 -8 -8 -8 -6 -6 -6 -6 -6 -5 ------------ Run | Yrd Mat Sub Mat Sto Rec Fac Ext Cet Arc Hub Fac Used RIF Installer . | . . . . . . . . . . . . Robots Hacked . | . . . . . . . . . . . . Non-combat . | . . . . . . . . . . . . Combat . | . . . . . . . . . . . . Robot Hacks Applied . | . . . . . . . . . . . . Relay Couplers Released 4 | . . . . . . . . . . . 4 Programmers 4 | . . . . . . . . . . . 4 Fabnet Peak Effective % . | . . . . . . . . . . . . Robots Rewired 31 | . . . . . 9 . 22 . . . . Allies Hacked . | . . . . . . . . . . . . Hacks Repelled . | . . . . . . . . . . . . Allies | -11 -10 -10 -8 -8 -8 -6 -6 -6 -6 -6 -5 -------- Run | Yrd Mat Sub Mat Sto Rec Fac Ext Cet Arc Hub Fac Total Allies 50 | . . . . . 9 . 36 5 . . . Largest Group 28 | . . . . . 9 3 23 28 21 14 . Highest-Rated Group 1277 | . . . . . 172 64 808 1277 1074 722 . Highest-Rated Ally 159 | . . . . . 34 27 159 159 159 96 . Total Orders 3 | . . . . . 1 . . 2 . . . STAY 1 | . . . . . . . . 1 . . . ROAM 1 | . . . . . 1 . . . . . . FOLLOW 1 | . . . . . . . . 1 . . . Ally Attacks 371 | . . . . . 8 . 209 78 20 56 . Total Damage 9821 | . . . . . 197 . 5299 1706 840 1779 . Kills 67 | . . . . . 3 . 29 11 7 17 . Allies Corrupted 2 | . . . . . . . . . . 2 . Allies Melted 1 | . . . . . . . . 1 . . . Intel | -11 -10 -10 -8 -8 -8 -6 -6 -6 -6 -6 -5 ------- Run | Yrd Mat Sub Mat Sto Rec Fac Ext Cet Arc Hub Fac Active Infowar (turns) 6661 | . . . 816 33 2125 1538 2149 . . . . Sensors 849 | . . . 816 33 . . . . . . . Machine Analysis 5812 | . . . . . 2125 1538 2149 . . . . Cloaking 2 | . . . . . . 2 . . . . . Robot Analysis Total 3 | . 2 . . . . . 1 . . . . Derelict Logs Recovered 1 | . . 1 . . . . . . . . . Drone Launches . | . . . . . . . . . . . . Drone Recoveries . | . . . . . . . . . . . . Exploration | -11 -10 -10 -8 -8 -8 -6 -6 -6 -6 -6 -5 ------------- Run | Yrd Mat Sub Mat Sto Rec Fac Ext Cet Arc Hub Fac Turns Passed 20474 | 5 2029 5779 1090 903 3087 1538 2537 985 491 637 1393 Spaces Moved 7784 | 1 805 2139 302 383 1420 500 1019 313 179 235 488 Core 32 | . . . . . . . . . . . 32 Treads 5378 | 1 805 2076 161 383 1420 17 12 23 179 235 66 Legs 1796 | . . 63 141 . . 99 1007 290 . . 196 Wheels 360 | . . . . . . 233 . . . . 127 Hover 160 | . . . . . . 93 . . . . 67 Flight 58 | . . . . . . 58 . . . . . Fastest Speed 50 | 160 160 210 155 155 150 196 148 155 206 168 50 Average Speed 200 | 160 189 247 222 156 174 223 174 170 206 197 158 Slowest Speed 400 | 160 240 320 400 232 232 249 276 206 206 206 206 Overloaded Moves . | . . . . . . . . . . . . Propulsion Burnouts . | . . . . . . . . . . . . Robots Hopped . | . . . . . . . . . . . . Potential Cave-ins . | . . . . . . . . . . . . Cave-ins Triggered 1 | . . . . . 1 . . . . . . Exploration Rate (%) 54 | 2 87 95 21 65 99 11 89 57 88 29 13 Regions Visited 11 Branch Regions 7 Pre-discovered Areas 8 | . 1 2 . . 5 . . . . . . Known Exits Taken 6 | . 1 1 1 1 1 . . . . 1 . Unknown Exits Taken 5 | 1 . . . . . 1 1 1 1 . . Scrap Searched 9 | . . 9 . . . . . . . . . Spaces Dug 1 | . . . . . . . . . . 1 . Terrain Destroyed 286 | . 4 . 35 . 14 14 6 18 4 166 25 Melee . | . . . . . . . . . . . . Projectile 18 | . . . . . . 2 2 1 4 8 1 AOE 268 | . 4 . 35 . 14 12 4 17 . 158 24 Terrain Rammed . | . . . . . . . . . . . . Walls Destroyed . | . . . . . . . . . . . . Machines Disabled . | . . . . . . . . . . . . Actions | -11 -10 -10 -8 -8 -8 -6 -6 -6 -6 -6 -5 --------- Run | Yrd Mat Sub Mat Sto Rec Fac Ext Cet Arc Hub Fac Total 11649 | 6 1228 2427 646 574 1987 821 1636 733 270 337 984 Wait 2610 | . 355 79 276 103 408 223 319 393 65 44 345 Move 7773 | . 804 2138 301 382 1419 499 1018 312 178 234 488 Hop . | . . . . . . . . . . . . Pick Up 138 | . 12 38 . . 12 15 32 5 5 3 16 Fast Attach 63 | . 3 2 14 13 6 6 4 . . 3 12 Attach 27 | 2 1 7 . . . 3 3 1 . 2 8 Detach 7 | . 1 . . . 1 1 1 . . 1 2 Swap 28 | . 2 11 1 2 2 4 2 2 . 1 1 Drop 148 | 4 5 41 6 6 17 12 33 3 5 4 12 Fire 641 | . 44 109 46 68 40 58 98 17 17 45 99 Melee 2 | . . 1 1 . . . . . . . . Ram 1 | . . . . . . . . . . . 1 Kick 2 | . . . . . . . 2 . . . . Crush 3 | . 1 . 1 . 1 . . . . . . Escape Stasis . | . . . . . . . . . . . . Rewire 205 | . . . . . 81 . 124 . . . . Trap 1 | . . 1 . . . . . . . . . Miscellaneous . | . . . . . . . . . . . . Route ------- -11/Scrapyard -10/Materials (discovered 5 exits: *Mat x3 / [Min] / *Sub) -10/Subcaves (discovered 2 exits: *Mat x2) -8/Materials (discovered 4 exits: Fac x2 / *Sto x2) -8/Storage -8/Recycling -6/Factory -6/Extension (discovered 3 exits: *Fac x2 / *Cet) -6/Cetus (discovered 2 exits: *Fac / [*Arc]) -6/Archives (discovered 3 exits: *Fac / *Hub x2) -6/Hub_04(d) (discovered 2 exits: *Fac x2) -5/Factory History --------- Turn | Location | Event 6 | -11/Scrapyard | Discovered new exit (range 0) 6 | -11/Scrapyard | Entered Materials 230 | -10/Materials | Repaired Imp. Heat Sink 313 | -10/Materials | Build established: Mutant 363 | -10/Materials | Discovered new exit (range 13) 528 | -10/Materials | Discovered new exit (range 15) 709 | -10/Materials | Discovered new exit (range 12) 772 | -10/Materials | Learned location of 1 exit from Storage 791 | -10/Materials | Discovered new exit (range 6) 806 | -10/Materials | Identified exit to Materials 831 | -10/Materials | Identified exit to Subcaves 850 | -10/Materials | Learned location of Storage (-8) 856 | -10/Materials | Learned location of 1 exit from Recycling 906 | -10/Materials | Derelicts attacked the area 2035 | -10/Materials | Entered Subcaves 2036 | -10/Subcaves | Identified exit to Materials 2055 | -10/Subcaves | Discovered exit to Materials (range 11) 2061 | -10/Subcaves | Shifting Twisted Machinery released Barrage Gun 2081 | -10/Subcaves | Shifting Twisted Machinery released Flamer 3216 | -10/Subcaves | Core integrity fell below 50% 4176 | -10/Subcaves | Visited 4L-MR0's lab 4227 | -10/Subcaves | Found Prototype Special Melee Weapon 4410 | -10/Subcaves | Ambushed by angry Subdweller bent on revenge 4433 | -10/Subcaves | Learned location of 2 exits from Materials 4449 | -10/Subcaves | A swath of the cavern ceiling suddenly collapsed 4769 | -10/Subcaves | A swath of the cavern ceiling suddenly collapsed 4820 | -10/Subcaves | Visited Clippyterm 4828 | -10/Subcaves | Learned location of Extension (-6) 4828 | -10/Subcaves | Learned location of Section 7 (-2) 5282 | -10/Subcaves | Shifting Twisted Machinery released Sub. Machine Gun 5288 | -10/Subcaves | Shifting Twisted Machinery released Mak. Spear 5999 | -10/Subcaves | Shifting Twisted Machinery released Battle Rifle 6029 | -10/Subcaves | Shifting Twisted Machinery released Battle Cannon 7131 | -10/Subcaves | Found SUBCON Basin 7413 | -10/Subcaves | Core integrity fell below 20% 7814 | -10/Subcaves | Entered Materials 7814 | -8/Materials | Evolved 4 slots: Propulsion x1, Utility x3 7815 | -8/Materials | Identified exit to Storage 7816 | -8/Materials | Identified exit to Factory 8720 | -8/Materials | Discovered exit to Storage (range 11) 8904 | -8/Materials | Entered Storage 8905 | -8/Storage | Identified exit to Recycling 8940 | -8/Storage | Build established: Scavenger-Mutant 9014 | -8/Storage | Lost 5 parts (1p1n3u) 9144 | -8/Storage | Repaired Adv. Treads 9226 | -8/Storage | Repaired Lgt. Treads 9266 | -8/Storage | Core integrity fell below 50% 9476 | -8/Storage | Repaired Lgt. Armor Plating 9760 | -8/Storage | Used back door to open Recycling access 9807 | -8/Storage | Entered Recycling 9808 | -8/Recycling | Identified exit to Factory 10012 | -8/Recycling | Crushed by falling debris 10043 | -8/Recycling | Lost 3 parts (1p2u) 10320 | -8/Recycling | Lost 3 allies 10357 | -8/Recycling | Build established: Commander-Mutant 10867 | -8/Recycling | Entered Scraplab 10896 | -8/Recycling | Found Prototype Device 10896 | -8/Recycling | Identified Scrap Engine 12010 | -8/Recycling | Build established: Commander-Construct 12757 | -8/Recycling | System corruption reached 10% 12894 | -8/Recycling | Entered Factory 12894 | -6/Factory | Accompanied by 3 allies 12894 | -6/Factory | Evolved 4 slots: Power x1, Propulsion x1, Utility x2 13190 | -6/Factory | Build established: Construct 13244 | -6/Factory | Search patrols dispatched 13469 | -6/Factory | Garrison activated, responded to threat 14424 | -6/Factory | Discovered new exit (range 5) 14432 | -6/Factory | Entered Extension 14433 | -6/Extension | Disrupted transfer network 15092 | -6/Extension | Identified exit to Factory 15232 | -6/Extension | Rescued A7 15308 | -6/Extension | Rescued a captive Derelict 15459 | -6/Extension | Rescued a captive Derelict 15460 | -6/Extension | Rescued a captive Derelict 15515 | -6/Extension | Rescued a captive Derelict 15516 | -6/Extension | Rescued a captive Derelict 15678 | -6/Extension | Build established: Commander-Construct 15811 | -6/Extension | Spotted B-75 Beast 15835 | -6/Extension | Destroyed B-75 Beast 15850 | -6/Extension | Spotted B-75 Beast 15866 | -6/Extension | Destroyed B-75 Beast 15895 | -6/Extension | Lost 6 allies 16158 | -6/Extension | Build established: Construct 16462 | -6/Extension | Found Powered Armor 16483 | -6/Extension | Build established: Commander-Construct 16523 | -6/Extension | Rescued a captive Derelict 16523 | -6/Extension | Rescued a captive Derelict 16746 | -6/Extension | Rescued a captive Derelict 16747 | -6/Extension | Rescued a captive Derelict 16756 | -6/Extension | Rescued a captive Derelict 16757 | -6/Extension | Rescued a captive Derelict 16772 | -6/Extension | Rescued a captive Derelict 16773 | -6/Extension | Rescued a captive Derelict 16834 | -6/Extension | Rescued a captive Derelict 16866 | -6/Extension | Discovered new exit (range 6) 16969 | -6/Extension | Entered Cetus 16969 | -6/Cetus | Accompanied by 23 allies (A7) 16974 | -6/Cetus | Acquired a Cetus Manufacturing Module code from A7 17004 | -6/Cetus | Spotted Cetus Guard 17004 | -6/Cetus | Spotted Cetus Guard 17009 | -6/Cetus | Allies destroyed Cetus Guard 17009 | -6/Cetus | Spotted Cetus Guard 17012 | -6/Cetus | Spotted Cetus Guard 17013 | -6/Cetus | Allies destroyed Cetus Guard 17015 | -6/Cetus | Allies destroyed Cetus Guard 17028 | -6/Cetus | Allies destroyed Cetus Guard 17159 | -6/Cetus | Started Cetus Manufacturing Module 17184 | -6/Cetus | Manufactured an Enhanced Grunt 17209 | -6/Cetus | Manufactured an Enhanced Grunt 17234 | -6/Cetus | Manufactured an Enhanced Grunt 17259 | -6/Cetus | Manufactured an Enhanced Grunt 17284 | -6/Cetus | Manufactured an Enhanced Grunt 17530 | -6/Cetus | Discovered new exit (range 16) 17563 | -6/Cetus | Spotted Cetus Guard 17563 | -6/Cetus | Spotted Cetus Guard 17567 | -6/Cetus | Spotted Cetus Guard 17567 | -6/Cetus | Spotted Cetus Guard 17572 | -6/Cetus | Destroyed Cetus Guard 17586 | -6/Cetus | Allies destroyed Cetus Guard 17588 | -6/Cetus | Allies destroyed Cetus Guard 17599 | -6/Cetus | Allies destroyed Cetus Guard 17600 | -6/Cetus | Discovered exit to Factory (range 16) 17615 | -6/Cetus | Met Revision 17 17719 | -6/Cetus | Security sweep announced 17873 | -6/Cetus | Lost 6 allies 17954 | -6/Cetus | Entered Archives 17954 | -6/Archives | Accompanied by 21 allies (A7) 18006 | -6/Archives | Discovered new exit (range 16) 18016 | -6/Archives | Lost 5 allies 18032 | -6/Archives | Discovered exit to Factory (range 16) 18124 | -6/Archives | Discovered new exit (range 13) 18445 | -6/Archives | Entered Hub_04(d) 18445 | -6/Hub_04(d) | Accompanied by 14 allies 18464 | -6/Hub_04(d) | Discovered exit to Factory (range 12) 18572 | -6/Hub_04(d) | Lost 3 allies 18853 | -6/Hub_04(d) | Network Hub disabled 18856 | -6/Hub_04(d) | Garrison activated, responded to threat 18859 | -6/Hub_04(d) | Spotted Lightning 18862 | -6/Hub_04(d) | Spotted Lightning 18862 | -6/Hub_04(d) | Spotted Lightning 18879 | -6/Hub_04(d) | Disrupted transfer network 18879 | -6/Hub_04(d) | Murdered 3 allies 18884 | -6/Hub_04(d) | System corruption reached 10% 18884 | -6/Hub_04(d) | Destroyed Lightning 18888 | -6/Hub_04(d) | Destroyed Lightning 18888 | -6/Hub_04(d) | Destroyed Lightning 18896 | -6/Hub_04(d) | Lost 4 allies 18896 | -6/Hub_04(d) | Spotted Lightning 18897 | -6/Hub_04(d) | Discovered exit to Factory (range 13) 18909 | -6/Hub_04(d) | Destroyed 7 combat bots 18966 | -6/Hub_04(d) | Destroyed Lightning 19082 | -6/Hub_04(d) | Entered Factory 19082 | -5/Factory | Evolved 2 slots: Weapon x2 19106 | -5/Factory | Lost 3 parts (1p1n1w) 19434 | -5/Factory | Build established: Construct 19639 | -5/Factory | Spotted B-75 Beast 19704 | -5/Factory | Destroyed B-75 Beast 19862 | -5/Factory | Cargo convoy interrupted 19913 | -5/Factory | Core integrity fell below 50% 19959 | -5/Factory | Lost 8 parts (2p2n4w) 20409 | -5/Factory | Fabricated Flak Cannon (x2) 20430 | -5/Factory | Core integrity fell below 20% 20443 | -5/Factory | System corruption reached 10% 20475 | -5/Factory | Destroyed by G-50 Soldier with Heavy Laser Last Messages --------------- 20458_ Overheating: Graphene Brace damaged (-51). 20458_ Overheating: Broken Flak Cannon damaged (-23). 20458_ Overheating: Imp. Hacking Suite damaged (-4). 20460_ R-10 Processor collects Carbon-fiber Leg. 20464_ R-10 Processor collects Hvy. Laser. 20464_ K-01 Serf collects debris. 20465_ System corrupted: Component data lost. 20466_ Hpw. Charged Tesla Construct/G destroyed. 20466_ Scrap Engine damaged due to network destabilization (-6). 20466_ Dropped Energy Well. 20467_ Extracted 62 energy. 20467_ Acquired Energy Well. 20468_ K-01 Serf collects debris. 20469_ Critical hit (Burn: +37). 20469_ Slammed into G-50 Soldier. 20469_ Destabilizing: System corrupted (+2). 20469_ P-70 Sage resets P-70 Sage, system corruption cleaned. 20471_ Broken Flak Cannon destroyed. 20472_ K-01 Serf collects debris. Map ----- +----------------------------------------------------+ | # % ?????????????????????? | | "" + ?????????????????????? | | S # % ????#???????????????? | | # ??? ###?????????????? | | # ?? ?????????????? | | + ? ??????????????? | | # ? ???????????????? | | "" # ? ????????????????? | | "" + ! ??????????????????? | | "" ### ######+###?????????????????? | | #?# # #?????????????????? | | ##/#?# + """ #?????????????????? | | ?# #?# # """ #?????????????????? | | ?# #?# + """ #?????????????????? | | ?# ### ####### #?????????????????? | | ?# #?????# """ #?????????????????? | | ##+##+###########?????# """ #?????????????????? | | %% #?????????# """ #?????????????????? | | % #?????????# #?????????????????? | | % #?????????#######+##?????????????????? | | % #????############ #??????????????????? | | #????# "" " ## #??????????????????? | | #????# F " ## #??????????????????? | | ! #????# ## #??????????????????? | | #????#p k gR## ##?????????????????? | | # / % @ # #?????????????????? | | # # % " "p # #?????????????????? | | # ??# """ + #?????????????????? | | #??? + """" # #?????????????????? | | ########+####????########### #?????????????????? | | ???????# #?????????????????# #?????????????????? | | ???????# #?????????????????# #?????????????????? | | ???????# #?????????????????+ #?????????????????? | | ??????? #?????????????????# #?????????????????? | | ???????# #?????????????????# #?????????????????? | | ???????#+#?????????????????# #?????????????????? | | ???????????????????????????# +?????????????????? | | ???????????????????????????# #?????????????????? | | ???????????????????????????? #?????????????????? | | ???????????????????????????? #?????????????????? | | ???????????????????????????? #?????????????????? | | ???????????????????????????? ??????????????????? | | ?????????????????????????????????????????????????? | | ?????????????????????????????????????????????????? | | ?????????????????????????????????????????????????? | | ?????????????????????????????????????????????????? | | ?????????????????????????????????????????????????? | | ?????????????????????????????????????????????????? | | ?????????????????????????????????????????????????? | | ?????????????????????????????????????????????????? | +----------------------------------------------------+ Best States ------------- Heat Dissipation 83 Energy Generation 49 Energy Capacity 504 Matter Stores 300 Matter Capacity 300 Sight Range 16 Robot Scan Range 15 Terrain Scan Density 10 Armor Coverage 625 Resistance: KI 20 Resistance: TH 20 Resistance: EX 20 Resistance: EM 20 Resistance: I 20 Resistance: S 20 Resistance: P 20 Core Shielding 20 Propulsion Shielding 33 Utility Shielding 33 Weapon Shielding 33 Evasion (%) 55 Targeting Accuracy 5 Target Analysis 6 Recoil Reduction 4 Particle Charging 20 Kinecelleration 30 Offensive Hacking 22 Defensive Hacking 12 Item Schematics ----------------- Gauss Rifle | -8/Storage | Hacked Nuclear Core | -8/Storage | Hacked Flak Cannon | -8/Storage | Hacked Adv. Heat Sink | -8/Recycling | Hacked Hacking Suite | -8/Recycling | Hacked Focal Shield | -8/Recycling | Hacked Shock Absorption System | -8/Recycling | Hacked Adv. Cryofiber Web | -6/Extension | Hacked Thunder Leg | -5/Factory | Hacked Robot Schematics ------------------ M-14 Sweeper | -8/Storage | Hacked B-36 Bruiser | -8/Recycling | Hacked Fabricated ------------ Flak Cannon | x2 | -5/Factory Repaired ---------- Imp. Heat Sink | 7% | -10/Materials Adv. Treads | 18% | -8/Storage Lgt. Treads | 2% | -8/Storage Lgt. Armor Plating | 20% | -8/Storage Studied --------- None Alien Tech Used ----------------- None Achievements -------------- Myspace Challenges ------------ None Game ------ Seed SwordRapidShredder Manual? 0 Play Time 02:13:44 Cumulative 468.9 hours Start 2026.03.10 @ 01:37:59 End 2026.03.10 @ 04:20:34 Sessions 1 Manual Loads 0 Difficulty Adventurer Special Mode None Game No. 345 Rogue 63 Adventurer 256 Explorer 26 Win Type - Total 2 Types 2/0/0/0/0/0/0/0/0/0 Lore% 83 Gallery% 70 Achievement% 50 Wizard Run 0 Options --------- Layout 2 ASCII 0 Keyboard 0 Movement Mouse Keybinds 0 Fullscreen 0 Font 16/Cog Map View 64x51 Zoom Use 0% Tactical HUD 1 Map Filters NONE Filters BRIGHTNESS(115)|SATURATION(100)|LOW_CONTRAST(0,16,30) Steam 1 RUN: b41eafda-40ce-48b2-9041-1b4d713632bc